[Event "Titled Tuesday Blitz August 1 Early 2023"]
[White "Eggleston, Thomas A"]
[Black "Gyulamiryan-koryun"]
[WhiteFideId "412139"]
[WhiteElo "2379"]
[BlackElo "2100"]
[Result "1-0"]
[Round "11"]
[TimeControl "180+1"]
[Date "2023.08.01"]
[WhiteClock "0:00:23"]
[BlackClock "0:00:00"]
[Board "134"]

1. e4 {[%clk 0:03:00]}  c5 {[%clk 0:02:59]} 2. Nf3 {[%clk 0:03:00]}  d6 {[%clk 0:02:58]} 3. Bc4 {[%clk 0:03:01]}  e6 {[%clk 0:02:54]} 4. O-O {[%clk 0:03:01]}  Nc6 {[%clk 0:02:52]} 5. Re1 {[%clk 0:03:01]}  Nge7 {[%clk 0:02:47]} 6. c3 {[%clk 0:03:00]}  g6 {[%clk 0:02:47]} 7. d4 {[%clk 0:03:00]}  cxd4 {[%clk 0:02:46]} 8. cxd4 {[%clk 0:03:00]}  d5 {[%clk 0:02:44]} 9. exd5 {[%clk 0:03:00]}  Nxd5 {[%clk 0:02:43]} 10. Bg5 {[%clk 0:02:55]}  Be7 {[%clk 0:02:26]} 11. Bxd5 {[%clk 0:02:29]}  Bxg5 {[%clk 0:02:03]} 12. Bxc6+ {[%clk 0:02:27]}  bxc6 {[%clk 0:02:03]} 13. Nxg5 {[%clk 0:02:28]}  Qxg5 {[%clk 0:02:02]} 14. Nc3 {[%clk 0:02:26]}  O-O {[%clk 0:02:01]} 15. Ne4 {[%clk 0:02:25]}  Qe7 {[%clk 0:01:49]} 16. Rc1 {[%clk 0:02:21]}  Rb8 {[%clk 0:01:43]} 17. Rc2 {[%clk 0:01:52]}  Rd8 {[%clk 0:01:39]} 18. Rd2 {[%clk 0:01:52]}  Ba6 {[%clk 0:01:26]} 19. Nc5 {[%clk 0:01:48]}  Bc4 {[%clk 0:01:24]} 20. b3 {[%clk 0:01:46]}  Bd5 {[%clk 0:01:24]} 21. Qg4 {[%clk 0:01:43]}  h5 {[%clk 0:01:19]} 22. Qf4 {[%clk 0:01:42]}  Kg7 {[%clk 0:01:16]} 23. h4 {[%clk 0:01:42]}  Rb4 {[%clk 0:01:08]} 24. a3 {[%clk 0:01:40]}  Rbb8 {[%clk 0:00:57]} 25. b4 {[%clk 0:01:39]}  a5 {[%clk 0:00:54]} 26. bxa5 {[%clk 0:01:37]}  Ra8 {[%clk 0:00:53]} 27. a6 {[%clk 0:01:34]}  Bc4 {[%clk 0:00:43]} 28. Qe5+ {[%clk 0:01:15]}  Qf6 {[%clk 0:00:41]} 29. Qc7 {[%clk 0:01:06]}  Bxa6 {[%clk 0:00:34]} 30. Nxe6+ {[%clk 0:01:02]}  Kg8 {[%clk 0:00:25]} 31. Nxd8 {[%clk 0:00:59]}  Rxd8 {[%clk 0:00:25]} 32. Qe7 {[%clk 0:00:53]}  Qxe7 {[%clk 0:00:19]} 33. Rxe7 {[%clk 0:00:53]}  Bc4 {[%clk 0:00:18]} 34. a4 {[%clk 0:00:37]}  Be6 {[%clk 0:00:17]} 35. Ra7 {[%clk 0:00:31]}  c5 {[%clk 0:00:15]} 36. d5 {[%clk 0:00:26]}  Bxd5 {[%clk 0:00:11]} 37. Rc7 {[%clk 0:00:23]}  Kf8 {[%clk 0:00:00]} 38. Rxc5 {[%clk 0:00:23]} 1-0


[Site "https://www.chess.com"]

[Event "Titled Tuesday Blitz August 1 Early 2023"]
[White "ilya2700"]
[Black "Pershina, Elena"]
[BlackFideId "24147516"]
[WhiteElo "2086"]
[BlackElo "2379"]
[Result "0-1"]
[Round "11"]
[TimeControl "180+1"]
[Date "2023.08.01"]
[WhiteClock "0:01:52"]
[BlackClock "0:00:28"]
[Board "135"]

1. e4 {[%clk 0:02:59]}  c5 {[%clk 0:03:00]} 2. c4 {[%clk 0:02:59]}  Nc6 {[%clk 0:03:00]} 3. Ne2 {[%clk 0:02:59]}  e5 {[%clk 0:02:54]} 4. d3 {[%clk 0:02:59]}  g6 {[%clk 0:02:53]} 5. Nbc3 {[%clk 0:03:00]}  Bg7 {[%clk 0:02:53]} 6. g3 {[%clk 0:03:00]}  Nge7 {[%clk 0:02:52]} 7. Bg2 {[%clk 0:03:01]}  O-O {[%clk 0:02:51]} 8. O-O {[%clk 0:03:02]}  d6 {[%clk 0:02:51]} 9. f4 {[%clk 0:03:02]}  f5 {[%clk 0:02:49]} 10. Be3 {[%clk 0:02:58]}  Rb8 {[%clk 0:02:45]} 11. a4 {[%clk 0:02:57]}  Nd4 {[%clk 0:02:40]} 12. Bxd4 {[%clk 0:02:55]}  exd4 {[%clk 0:02:38]} 13. Nd5 {[%clk 0:02:56]}  fxe4 {[%clk 0:02:32]} 14. Bxe4 {[%clk 0:02:54]}  Bh3 {[%clk 0:02:30]} 15. Bg2 {[%clk 0:02:51]}  Bxg2 {[%clk 0:02:29]} 16. Kxg2 {[%clk 0:02:52]}  Nxd5 {[%clk 0:02:28]} 17. cxd5 {[%clk 0:02:53]}  Qf6 {[%clk 0:02:21]} 18. Qb3 {[%clk 0:02:48]}  Rbe8 {[%clk 0:02:18]} 19. Rae1 {[%clk 0:02:43]}  Re7 {[%clk 0:02:18]} 20. Ng1 {[%clk 0:02:39]}  Rfe8 {[%clk 0:02:18]} 21. Nf3 {[%clk 0:02:37]}  Re2+ {[%clk 0:02:03]} 22. Rxe2 {[%clk 0:02:35]}  Rxe2+ {[%clk 0:02:03]} 23. Rf2 {[%clk 0:02:35]}  Qe7 {[%clk 0:02:02]} 24. Ng5 {[%clk 0:02:22]}  Rxf2+ {[%clk 0:01:37]} 25. Kxf2 {[%clk 0:02:22]}  Qe3+ {[%clk 0:01:37]} 26. Kg2 {[%clk 0:02:21]}  Qe2+ {[%clk 0:01:36]} 27. Kg1 {[%clk 0:02:18]}  b6 {[%clk 0:01:26]} 28. Qb5 {[%clk 0:02:15]}  Qe1+ {[%clk 0:00:51]} 29. Kg2 {[%clk 0:02:14]}  Qe2+ {[%clk 0:00:51]} 30. Kg1 {[%clk 0:02:11]}  Qe1+ {[%clk 0:00:51]} 31. Kg2 {[%clk 0:02:11]}  Qe2+ {[%clk 0:00:52]} 32. Kh3 {[%clk 0:02:11]}  Bf6 {[%clk 0:00:38]} 33. Ne6 {[%clk 0:02:02]}  Qf1+ {[%clk 0:00:27]} 34. Kg4 {[%clk 0:01:52]}  h5# {[%clk 0:00:28]} 0-1


[Site "https://www.chess.com"]

[Event "Titled Tuesday Blitz August 1 Early 2023"]
[White "Ai, Evan"]
[Black "Stachanczyk, Jacek"]
[WhiteFideId "2094770"]
[BlackFideId "1116657"]
[WhiteElo "2310"]
[BlackElo "2407"]
[Result "1/2-1/2"]
[Round "11"]
[TimeControl "180+1"]
[Date "2023.08.01"]
[WhiteClock "0:00:03"]
[BlackClock "0:00:17"]
[Board "137"]

1. e4 {[%clk 0:02:58]}  c5 {[%clk 0:02:58]} 2. Nf3 {[%clk 0:02:58]}  d6 {[%clk 0:02:58]} 3. d4 {[%clk 0:02:59]}  cxd4 {[%clk 0:02:58]} 4. Nxd4 {[%clk 0:02:59]}  Nf6 {[%clk 0:02:58]} 5. Nc3 {[%clk 0:02:58]}  g6 {[%clk 0:02:59]} 6. Be2 {[%clk 0:02:58]}  Bg7 {[%clk 0:02:59]} 7. Be3 {[%clk 0:02:56]}  O-O {[%clk 0:02:59]} 8. O-O {[%clk 0:02:57]}  Nc6 {[%clk 0:03:00]} 9. f4 {[%clk 0:02:53]}  Qb6 {[%clk 0:03:00]} 10. Na4 {[%clk 0:02:26]}  Qb4 {[%clk 0:02:55]} 11. c3 {[%clk 0:02:25]}  Qa5 {[%clk 0:02:55]} 12. b4 {[%clk 0:02:20]}  Qc7 {[%clk 0:02:54]} 13. Bf3 {[%clk 0:02:17]}  a6 {[%clk 0:02:36]} 14. Nxc6 {[%clk 0:02:11]}  bxc6 {[%clk 0:02:33]} 15. Nb6 {[%clk 0:02:11]}  Rb8 {[%clk 0:02:32]} 16. Nc4 {[%clk 0:02:08]}  d5 {[%clk 0:02:19]} 17. exd5 {[%clk 0:01:58]}  cxd5 {[%clk 0:02:18]} 18. Ne5 {[%clk 0:01:47]}  Qxc3 {[%clk 0:02:14]} 19. Bd4 {[%clk 0:01:43]}  Qa3 {[%clk 0:02:02]} 20. Nc6 {[%clk 0:01:40]}  Rb7 {[%clk 0:02:00]} 21. Bc5 {[%clk 0:01:36]}  Re8 {[%clk 0:01:49]} 22. Qc1 {[%clk 0:01:13]}  Qa4 {[%clk 0:01:32]} 23. Na5 {[%clk 0:00:52]}  Rxb4 {[%clk 0:01:26]} 24. Bxb4 {[%clk 0:00:45]}  Qxb4 {[%clk 0:01:26]} 25. Nc6 {[%clk 0:00:44]}  Qb6+ {[%clk 0:01:22]} 26. Kh1 {[%clk 0:00:43]}  Bb7 {[%clk 0:01:18]} 27. Ne5 {[%clk 0:00:38]}  Ne4 {[%clk 0:01:05]} 28. Bxe4 {[%clk 0:00:33]}  dxe4 {[%clk 0:01:04]} 29. Rb1 {[%clk 0:00:34]}  Qa7 {[%clk 0:00:49]} 30. Qc7 {[%clk 0:00:33]}  Bxe5 {[%clk 0:00:48]} 31. Rxb7 {[%clk 0:00:32]}  Bxc7 {[%clk 0:00:46]} 32. Rxa7 {[%clk 0:00:32]}  Bd6 {[%clk 0:00:42]} 33. Rxa6 {[%clk 0:00:30]}  Rc8 {[%clk 0:00:40]} 34. Ra4 {[%clk 0:00:25]}  e3 {[%clk 0:00:40]} 35. Re4 {[%clk 0:00:24]}  Rc3 {[%clk 0:00:39]} 36. Re1 {[%clk 0:00:22]}  Bc5 {[%clk 0:00:39]} 37. a4 {[%clk 0:00:21]}  Ra3 {[%clk 0:00:38]} 38. Rc4 {[%clk 0:00:19]}  Ba7 {[%clk 0:00:36]} 39. h3 {[%clk 0:00:18]}  e6 {[%clk 0:00:35]} 40. Re2 {[%clk 0:00:18]}  Ra1+ {[%clk 0:00:33]} 41. Kh2 {[%clk 0:00:18]}  h5 {[%clk 0:00:34]} 42. g4 {[%clk 0:00:18]}  hxg4 {[%clk 0:00:31]} 43. hxg4 {[%clk 0:00:19]}  Kg7 {[%clk 0:00:31]} 44. Kg2 {[%clk 0:00:17]}  Kf6 {[%clk 0:00:31]} 45. Kf3 {[%clk 0:00:17]}  g5 {[%clk 0:00:30]} 46. fxg5+ {[%clk 0:00:12]}  Kxg5 {[%clk 0:00:30]} 47. Rc7 {[%clk 0:00:10]}  Rxa4 {[%clk 0:00:30]} 48. Rxf7 {[%clk 0:00:10]}  Kg6 {[%clk 0:00:29]} 49. Rf8 {[%clk 0:00:10]}  Kg7 {[%clk 0:00:29]} 50. Rf4 {[%clk 0:00:10]}  Ra3 {[%clk 0:00:27]} 51. g5 {[%clk 0:00:08]}  e5 {[%clk 0:00:26]} 52. Rf5 {[%clk 0:00:08]}  Bd4 {[%clk 0:00:25]} 53. Ke4 {[%clk 0:00:08]}  Ra1 {[%clk 0:00:25]} 54. Kd5 {[%clk 0:00:08]}  Kg6 {[%clk 0:00:24]} 55. Ke4 {[%clk 0:00:08]}  Rg1 {[%clk 0:00:23]} 56. Rf6+ {[%clk 0:00:08]}  Kxg5 {[%clk 0:00:23]} 57. Rf8 {[%clk 0:00:08]}  Rg4+ {[%clk 0:00:22]} 58. Kf3 {[%clk 0:00:08]}  Rf4+ {[%clk 0:00:20]} 59. Rxf4 {[%clk 0:00:08]}  exf4 {[%clk 0:00:21]} 60. Rg2+ {[%clk 0:00:08]}  Kf5 {[%clk 0:00:21]} 61. Rg4 {[%clk 0:00:09]}  Be5 {[%clk 0:00:21]} 62. Rg8 {[%clk 0:00:08]}  Ke6 {[%clk 0:00:21]} 63. Re8+ {[%clk 0:00:08]}  Kd5 {[%clk 0:00:22]} 64. Rd8+ {[%clk 0:00:08]}  Kc4 {[%clk 0:00:22]} 65. Re8 {[%clk 0:00:07]}  Kd4 {[%clk 0:00:21]} 66. Rd8+ {[%clk 0:00:07]}  Kc3 {[%clk 0:00:22]} 67. Ke2 {[%clk 0:00:05]}  Bd4 {[%clk 0:00:20]} 68. Rf8 {[%clk 0:00:05]}  Be5 {[%clk 0:00:19]} 69. Rc8+ {[%clk 0:00:05]}  Kd4 {[%clk 0:00:19]} 70. Rd8+ {[%clk 0:00:06]}  Ke4 {[%clk 0:00:19]} 71. Ra8 {[%clk 0:00:05]}  f3+ {[%clk 0:00:19]} 72. Ke1 {[%clk 0:00:04]}  e2 {[%clk 0:00:17]} 73. Ra4+ {[%clk 0:00:02]}  Bd4 {[%clk 0:00:17]} 74. Ra3 {[%clk 0:00:02]}  Be3 {[%clk 0:00:16]} 75. Ra4+ {[%clk 0:00:02]}  Kf5 {[%clk 0:00:17]} 76. Ra3 {[%clk 0:00:02]}  Kf4 {[%clk 0:00:17]} 77. Rxe3 {[%clk 0:00:03]}  Kxe3 {[%clk 0:00:17]} 1/2-1/2


[Site "https://www.chess.com"]

[Event "Titled Tuesday Blitz August 1 Early 2023"]
[White "Schut, Han"]
[Black "Cheer_Down"]
[WhiteFideId "1005561"]
[WhiteElo "2263"]
[BlackElo "2401"]
[Result "1/2-1/2"]
[Round "11"]
[TimeControl "180+1"]
[Date "2023.08.01"]
[WhiteClock "0:00:50"]
[BlackClock "0:00:57"]
[Board "138"]

1. e4 {[%clk 0:03:00]}  c5 {[%clk 0:02:38]} 2. Nf3 {[%clk 0:03:00]}  d6 {[%clk 0:02:37]} 3. d4 {[%clk 0:03:00]}  cxd4 {[%clk 0:02:37]} 4. Nxd4 {[%clk 0:03:01]}  Nf6 {[%clk 0:02:37]} 5. f3 {[%clk 0:03:02]}  e5 {[%clk 0:02:36]} 6. Bb5+ {[%clk 0:03:02]}  Nbd7 {[%clk 0:02:35]} 7. Nf5 {[%clk 0:03:02]}  a6 {[%clk 0:02:29]} 8. Bxd7+ {[%clk 0:02:59]}  Qxd7 {[%clk 0:02:24]} 9. Bg5 {[%clk 0:02:58]}  Qc6 {[%clk 0:02:17]} 10. Ne3 {[%clk 0:02:36]}  Be6 {[%clk 0:02:12]} 11. Nc3 {[%clk 0:02:26]}  Rc8 {[%clk 0:01:45]} 12. Bxf6 {[%clk 0:02:21]}  gxf6 {[%clk 0:01:45]} 13. Ncd5 {[%clk 0:02:22]}  Bxd5 {[%clk 0:01:43]} 14. Nxd5 {[%clk 0:02:21]}  Qxc2 {[%clk 0:01:40]} 15. Nxf6+ {[%clk 0:02:11]}  Ke7 {[%clk 0:01:40]} 16. Nd5+ {[%clk 0:02:09]}  Ke8 {[%clk 0:01:41]} 17. O-O {[%clk 0:01:54]}  Qxd1 {[%clk 0:01:27]} 18. Raxd1 {[%clk 0:01:48]}  Be7 {[%clk 0:01:27]} 19. Rf2 {[%clk 0:01:25]}  Rc6 {[%clk 0:01:26]} 20. Rfd2 {[%clk 0:01:17]}  Kd7 {[%clk 0:01:14]} 21. Nb4 {[%clk 0:00:50]}  Rb6 {[%clk 0:00:58]} 22. Nd5 {[%clk 0:00:49]}  Rc6 {[%clk 0:00:56]} 23. Nb4 {[%clk 0:00:49]}  Rb6 {[%clk 0:00:57]} 24. Nd5 {[%clk 0:00:50]}  Rc6 {[%clk 0:00:57]} 1/2-1/2


[Site "https://www.chess.com"]

[Event "Titled Tuesday Blitz August 1 Early 2023"]
[White "Barwinska, Ewa"]
[Black "Rosenberg, Evan S"]
[WhiteFideId "21833761"]
[BlackFideId "2019299"]
[WhiteElo "2285"]
[BlackElo "2384"]
[Result "0-1"]
[Round "11"]
[TimeControl "180+1"]
[Date "2023.08.01"]
[WhiteClock "0:00:01"]
[BlackClock "0:00:24"]
[Board "139"]

1. e4 {[%clk 0:03:00]}  c5 {[%clk 0:02:57]} 2. Nf3 {[%clk 0:02:53]}  g6 {[%clk 0:02:57]} 3. c4 {[%clk 0:02:51]}  Nc6 {[%clk 0:02:44]} 4. d4 {[%clk 0:02:51]}  Qa5+ {[%clk 0:02:44]} 5. Bd2 {[%clk 0:02:43]}  Qb6 {[%clk 0:02:43]} 6. dxc5 {[%clk 0:02:27]}  Qxc5 {[%clk 0:02:33]} 7. Bc3 {[%clk 0:02:23]}  Nf6 {[%clk 0:02:31]} 8. e5 {[%clk 0:01:47]}  Ne4 {[%clk 0:02:18]} 9. Qe2 {[%clk 0:01:22]}  Nxc3 {[%clk 0:02:17]} 10. Nxc3 {[%clk 0:01:22]}  Bg7 {[%clk 0:02:15]} 11. Nd5 {[%clk 0:01:19]}  O-O {[%clk 0:02:08]} 12. a3 {[%clk 0:01:05]}  a5 {[%clk 0:02:06]} 13. Rb1 {[%clk 0:00:56]}  b5 {[%clk 0:01:45]} 14. b4 {[%clk 0:00:40]}  axb4 {[%clk 0:01:45]} 15. axb4 {[%clk 0:00:41]}  Qxc4 {[%clk 0:01:42]} 16. Qxc4 {[%clk 0:00:41]}  bxc4 {[%clk 0:01:43]} 17. Bxc4 {[%clk 0:00:41]}  e6 {[%clk 0:01:02]} 18. Nf6+ {[%clk 0:00:19]}  Kh8 {[%clk 0:01:02]} 19. O-O {[%clk 0:00:11]}  Nxe5 {[%clk 0:01:02]} 20. Nxe5 {[%clk 0:00:09]}  Bxf6 {[%clk 0:01:03]} 21. f4 {[%clk 0:00:09]}  d5 {[%clk 0:01:01]} 22. Bb5 {[%clk 0:00:06]}  Rb8 {[%clk 0:00:51]} 23. Be2 {[%clk 0:00:05]}  Bxe5 {[%clk 0:00:40]} 24. fxe5 {[%clk 0:00:05]}  Kg7 {[%clk 0:00:38]} 25. b5 {[%clk 0:00:05]}  Bb7 {[%clk 0:00:38]} 26. Rb4 {[%clk 0:00:05]}  f6 {[%clk 0:00:36]} 27. exf6+ {[%clk 0:00:04]}  Rxf6 {[%clk 0:00:37]} 28. b6 {[%clk 0:00:03]}  Rxf1+ {[%clk 0:00:35]} 29. Kxf1 {[%clk 0:00:04]}  Kf6 {[%clk 0:00:31]} 30. Ke1 {[%clk 0:00:03]}  Ke5 {[%clk 0:00:31]} 31. Kd2 {[%clk 0:00:03]}  Kd6 {[%clk 0:00:32]} 32. Bg4 {[%clk 0:00:02]}  e5 {[%clk 0:00:30]} 33. Kd3 {[%clk 0:00:03]}  Kc5 {[%clk 0:00:28]} 34. Rb2 {[%clk 0:00:02]}  Ba6+ {[%clk 0:00:28]} 35. Ke3 {[%clk 0:00:03]}  Rxb6 {[%clk 0:00:28]} 36. Rd2 {[%clk 0:00:03]}  Bc4 {[%clk 0:00:28]} 37. Bf3 {[%clk 0:00:03]}  Rb3+ {[%clk 0:00:28]} 38. Kf2 {[%clk 0:00:03]}  e4 {[%clk 0:00:27]} 39. Bg4 {[%clk 0:00:04]}  d4 {[%clk 0:00:27]} 40. Rd1 {[%clk 0:00:03]}  e3+ {[%clk 0:00:27]} 41. Ke1 {[%clk 0:00:04]}  Rb2 {[%clk 0:00:26]} 42. Rc1 {[%clk 0:00:03]}  Kb4 {[%clk 0:00:25]} 43. Ra1 {[%clk 0:00:02]}  Rxg2 {[%clk 0:00:25]} 44. Bf3 {[%clk 0:00:01]}  Rg1# {[%clk 0:00:24]} 0-1


[Site "https://www.chess.com"]

[Event "Titled Tuesday Blitz August 1 Early 2023"]
[White "Miguelitro69"]
[Black "Putri, Regita Desyari"]
[BlackFideId "7109083"]
[WhiteElo "2314"]
[BlackElo "2242"]
[Result "0-1"]
[Round "11"]
[TimeControl "180+1"]
[Date "2023.08.01"]
[WhiteClock "0:01:14"]
[BlackClock "0:00:53"]
[Board "143"]

1. e4 {[%clk 0:03:00]}  e5 {[%clk 0:02:59]} 2. Nf3 {[%clk 0:03:00]}  Nc6 {[%clk 0:02:59]} 3. Bb5 {[%clk 0:03:00]}  a6 {[%clk 0:02:59]} 4. Ba4 {[%clk 0:03:00]}  Nf6 {[%clk 0:03:00]} 5. Qe2 {[%clk 0:03:00]}  b5 {[%clk 0:02:59]} 6. Bb3 {[%clk 0:03:00]}  Be7 {[%clk 0:02:59]} 7. O-O {[%clk 0:02:57]}  O-O {[%clk 0:02:59]} 8. c3 {[%clk 0:02:56]}  d6 {[%clk 0:02:58]} 9. h3 {[%clk 0:02:56]}  Re8 {[%clk 0:02:51]} 10. Ng5 {[%clk 0:02:48]}  Rf8 {[%clk 0:02:51]} 11. f4 {[%clk 0:02:36]}  h6 {[%clk 0:02:46]} 12. fxe5 {[%clk 0:02:33]}  dxe5 {[%clk 0:02:44]} 13. Nf3 {[%clk 0:02:29]}  Bc5+ {[%clk 0:02:37]} 14. Kh1 {[%clk 0:02:28]}  Nh5 {[%clk 0:02:35]} 15. d4 {[%clk 0:02:17]}  Ng3+ {[%clk 0:02:33]} 16. Kh2 {[%clk 0:02:16]}  Nxe2 {[%clk 0:02:34]} 17. dxc5 {[%clk 0:02:15]}  Nxc1 {[%clk 0:02:10]} 18. Rxc1 {[%clk 0:02:15]}  Qe7 {[%clk 0:02:11]} 19. Na3 {[%clk 0:02:11]}  Qxc5 {[%clk 0:02:09]} 20. Nc2 {[%clk 0:02:11]}  Be6 {[%clk 0:02:05]} 21. Rf1 {[%clk 0:02:04]}  Rad8 {[%clk 0:01:57]} 22. Rae1 {[%clk 0:02:01]}  Bc4 {[%clk 0:01:49]} 23. Bxc4 {[%clk 0:01:59]}  bxc4 {[%clk 0:01:45]} 24. Ne3 {[%clk 0:01:58]}  Ne7 {[%clk 0:01:44]} 25. Ng4 {[%clk 0:01:57]}  f6 {[%clk 0:01:43]} 26. Nh4 {[%clk 0:01:54]}  Rd2 {[%clk 0:01:41]} 27. Rf3 {[%clk 0:01:53]}  Rxb2 {[%clk 0:01:38]} 28. Rg3 {[%clk 0:01:53]}  Kh7 {[%clk 0:01:37]} 29. Ne3 {[%clk 0:01:52]}  Rd8 {[%clk 0:01:31]} 30. Nef5 {[%clk 0:01:41]}  Nxf5 {[%clk 0:01:31]} 31. Nxf5 {[%clk 0:01:42]}  g6 {[%clk 0:01:31]} 32. Nh4 {[%clk 0:01:40]}  g5 {[%clk 0:01:25]} 33. Nf5 {[%clk 0:01:34]}  Rdd2 {[%clk 0:01:21]} 34. Rf1 {[%clk 0:01:30]}  h5 {[%clk 0:01:10]} 35. Ne3 {[%clk 0:01:23]}  h4 {[%clk 0:01:02]} 36. Rgf3 {[%clk 0:01:14]}  Qxe3 {[%clk 0:00:53]} 0-1


[Site "https://www.chess.com"]

[Event "Titled Tuesday Blitz August 1 Early 2023"]
[White "KorolDimitriy75"]
[Black "Thiel, Thomas"]
[BlackFideId "4615964"]
[WhiteElo "2377"]
[BlackElo "2255"]
[Result "1/2-1/2"]
[Round "11"]
[TimeControl "180+1"]
[Date "2023.08.01"]
[WhiteClock "0:00:09"]
[BlackClock "0:01:08"]
[Board "146"]

1. d4 {[%clk 0:00:45]}  d5 {[%clk 0:02:55]} 2. c4 {[%clk 0:00:46]}  dxc4 {[%clk 0:02:54]} 3. Nf3 {[%clk 0:00:46]}  Nf6 {[%clk 0:02:47]} 4. Nc3 {[%clk 0:00:46]}  a6 {[%clk 0:02:44]} 5. e4 {[%clk 0:00:46]}  b5 {[%clk 0:02:44]} 6. e5 {[%clk 0:00:46]}  Nd5 {[%clk 0:02:43]} 7. a4 {[%clk 0:00:47]}  b4 {[%clk 0:02:42]} 8. Ne4 {[%clk 0:00:46]}  Bf5 {[%clk 0:02:39]} 9. Ng3 {[%clk 0:00:46]}  Bg6 {[%clk 0:02:38]} 10. Bxc4 {[%clk 0:00:46]}  e6 {[%clk 0:02:38]} 11. O-O {[%clk 0:00:46]}  Nd7 {[%clk 0:02:34]} 12. Qe2 {[%clk 0:00:45]}  a5 {[%clk 0:02:32]} 13. Bg5 {[%clk 0:00:42]}  Be7 {[%clk 0:02:28]} 14. Bxe7 {[%clk 0:00:41]}  Qxe7 {[%clk 0:02:27]} 15. Rac1 {[%clk 0:00:42]}  N7b6 {[%clk 0:02:24]} 16. Bb5+ {[%clk 0:00:41]}  Kf8 {[%clk 0:02:21]} 17. Ne4 {[%clk 0:00:39]}  Bxe4 {[%clk 0:02:14]} 18. Qxe4 {[%clk 0:00:38]}  Rd8 {[%clk 0:02:11]} 19. Rc5 {[%clk 0:00:30]}  h6 {[%clk 0:02:09]} 20. Rfc1 {[%clk 0:00:28]}  g6 {[%clk 0:02:08]} 21. h4 {[%clk 0:00:28]}  Kg7 {[%clk 0:02:07]} 22. Bc6 {[%clk 0:00:28]}  Rhf8 {[%clk 0:01:58]} 23. Rxa5 {[%clk 0:00:27]}  b3 {[%clk 0:01:36]} 24. Rac5 {[%clk 0:00:26]}  Nb4 {[%clk 0:01:27]} 25. a5 {[%clk 0:00:24]}  N6d5 {[%clk 0:01:26]} 26. Bxd5 {[%clk 0:00:18]}  Nxd5 {[%clk 0:01:27]} 27. Qd3 {[%clk 0:00:16]}  Rb8 {[%clk 0:01:26]} 28. a6 {[%clk 0:00:14]}  Rb6 {[%clk 0:01:25]} 29. g3 {[%clk 0:00:09]}  Ra8 {[%clk 0:01:08]} 30. Ra1 {[%clk 0:00:09]} 1/2-1/2


[Site "https://www.chess.com"]

[Event "Titled Tuesday Blitz August 1 Early 2023"]
[White "Tuleyeva-Aketayeva, Dana"]
[Black "Krzywda, Andrzej"]
[WhiteFideId "13701932"]
[BlackFideId "1114565"]
[WhiteElo "2232"]
[BlackElo "2366"]
[Result "1-0"]
[Round "11"]
[TimeControl "180+1"]
[Date "2023.08.01"]
[WhiteClock "0:00:07"]
[BlackClock "0:00:00"]
[Board "147"]

1. d4 {[%clk 0:03:00]}  d5 {[%clk 0:02:58]} 2. Nf3 {[%clk 0:03:00]}  Nf6 {[%clk 0:02:58]} 3. g3 {[%clk 0:03:01]}  c5 {[%clk 0:02:57]} 4. Bg2 {[%clk 0:03:01]}  Nc6 {[%clk 0:02:57]} 5. O-O {[%clk 0:03:01]}  e6 {[%clk 0:02:57]} 6. c4 {[%clk 0:03:01]}  dxc4 {[%clk 0:02:58]} 7. dxc5 {[%clk 0:03:02]}  Qxd1 {[%clk 0:02:57]} 8. Rxd1 {[%clk 0:03:03]}  Bxc5 {[%clk 0:02:57]} 9. Nbd2 {[%clk 0:03:03]}  c3 {[%clk 0:02:58]} 10. bxc3 {[%clk 0:03:04]}  O-O {[%clk 0:02:57]} 11. Ne1 {[%clk 0:03:04]}  Bd7 {[%clk 0:02:45]} 12. Nd3 {[%clk 0:03:01]}  Be7 {[%clk 0:02:43]} 13. Rb1 {[%clk 0:02:55]}  Rab8 {[%clk 0:02:34]} 14. Ne4 {[%clk 0:02:56]}  Nxe4 {[%clk 0:02:20]} 15. Bxe4 {[%clk 0:02:55]}  Na5 {[%clk 0:01:47]} 16. Bf4 {[%clk 0:02:28]}  Rbc8 {[%clk 0:01:47]} 17. Bxb7 {[%clk 0:02:23]}  Rxc3 {[%clk 0:01:38]} 18. Bd2 {[%clk 0:02:21]}  Ra3 {[%clk 0:01:37]} 19. Ne5 {[%clk 0:01:44]}  Be8 {[%clk 0:01:23]} 20. Bxa5 {[%clk 0:01:14]}  Rxa5 {[%clk 0:01:22]} 21. Nd7 {[%clk 0:01:13]}  Bxd7 {[%clk 0:01:15]} 22. Rxd7 {[%clk 0:01:14]}  Bf6 {[%clk 0:01:15]} 23. Be4 {[%clk 0:00:55]}  Rxa2 {[%clk 0:01:11]} 24. Rbb7 {[%clk 0:00:54]}  a5 {[%clk 0:01:11]} 25. f4 {[%clk 0:00:36]}  Rxe2 {[%clk 0:01:08]} 26. Bf3 {[%clk 0:00:34]}  Ra2 {[%clk 0:01:03]} 27. f5 {[%clk 0:00:34]}  exf5 {[%clk 0:00:42]} 28. Bd5 {[%clk 0:00:33]}  Rb2 {[%clk 0:00:30]} 29. Rxf7 {[%clk 0:00:24]}  Rxb7 {[%clk 0:00:23]} 30. Rxb7+ {[%clk 0:00:22]}  Kh8 {[%clk 0:00:24]} 31. Kg2 {[%clk 0:00:20]}  Bc3 {[%clk 0:00:19]} 32. Kf3 {[%clk 0:00:15]}  h6 {[%clk 0:00:18]} 33. Bb3 {[%clk 0:00:14]}  Kh7 {[%clk 0:00:17]} 34. Bc2 {[%clk 0:00:14]}  Kh8 {[%clk 0:00:14]} 35. Rc7 {[%clk 0:00:13]}  Bb4 {[%clk 0:00:14]} 36. Ba4 {[%clk 0:00:13]}  Rd8 {[%clk 0:00:11]} 37. Bc2 {[%clk 0:00:12]}  Rf8 {[%clk 0:00:11]} 38. Ba4 {[%clk 0:00:12]}  g6 {[%clk 0:00:10]} 39. h3 {[%clk 0:00:09]}  h5 {[%clk 0:00:09]} 40. Rc6 {[%clk 0:00:09]}  Kg7 {[%clk 0:00:09]} 41. Rc7+ {[%clk 0:00:09]}  Kf6 {[%clk 0:00:09]} 42. Bb3 {[%clk 0:00:08]}  Bd2 {[%clk 0:00:06]} 43. Rc6+ {[%clk 0:00:08]}  Kg7 {[%clk 0:00:06]} 44. Rc7+ {[%clk 0:00:09]}  Kh6 {[%clk 0:00:06]} 45. Rd7 {[%clk 0:00:08]}  Bb4 {[%clk 0:00:05]} 46. Bd5 {[%clk 0:00:07]}  a4 {[%clk 0:00:04]} 47. h4 {[%clk 0:00:07]}  a3 {[%clk 0:00:04]} 48. Rb7 {[%clk 0:00:07]}  Bc3 {[%clk 0:00:04]} 49. Ra7 {[%clk 0:00:07]}  Bb2 {[%clk 0:00:04]} 50. Ra6 {[%clk 0:00:07]}  Rd8 {[%clk 0:00:04]} 51. Bf7 {[%clk 0:00:07]}  Kg7 {[%clk 0:00:03]} 52. Bxg6 {[%clk 0:00:06]}  Rd3+ {[%clk 0:00:03]} 53. Ke2 {[%clk 0:00:06]}  Rxg3 {[%clk 0:00:03]} 54. Bxf5 {[%clk 0:00:06]}  Rg2+ {[%clk 0:00:03]} 55. Kf3 {[%clk 0:00:06]}  Rg1 {[%clk 0:00:02]} 56. Ra7+ {[%clk 0:00:07]}  Kf6 {[%clk 0:00:02]} 57. Bd3 {[%clk 0:00:06]}  Rd1 {[%clk 0:00:02]} 58. Be2 {[%clk 0:00:06]}  Rd2 {[%clk 0:00:02]} 59. Ke3 {[%clk 0:00:06]}  Rd8 {[%clk 0:00:02]} 60. Ra6+ {[%clk 0:00:06]}  Ke5 {[%clk 0:00:02]} 61. Bf3 {[%clk 0:00:06]}  Re8 {[%clk 0:00:01]} 62. Kf2 {[%clk 0:00:05]}  Kf4 {[%clk 0:00:01]} 63. Ra4+ {[%clk 0:00:05]}  Kf5 {[%clk 0:00:01]} 64. Bxh5 {[%clk 0:00:04]}  Rf8 {[%clk 0:00:01]} 65. Bf3 {[%clk 0:00:04]}  Ke6 {[%clk 0:00:02]} 66. Kg2 {[%clk 0:00:04]}  Kd6 {[%clk 0:00:02]} 67. h5 {[%clk 0:00:05]}  Kc5 {[%clk 0:00:02]} 68. h6 {[%clk 0:00:05]}  Kb5 {[%clk 0:00:03]} 69. Ra7 {[%clk 0:00:05]}  Bd4 {[%clk 0:00:03]} 70. Rxa3 {[%clk 0:00:05]}  Be3 {[%clk 0:00:02]} 71. Rxe3 {[%clk 0:00:04]}  Rh8 {[%clk 0:00:02]} 72. Re5+ {[%clk 0:00:05]}  Kc4 {[%clk 0:00:02]} 73. Rh5 {[%clk 0:00:06]}  Kd4 {[%clk 0:00:03]} 74. h7 {[%clk 0:00:06]}  Ke3 {[%clk 0:00:02]} 75. Bg4 {[%clk 0:00:06]}  Kf4 {[%clk 0:00:03]} 76. Kh3 {[%clk 0:00:06]}  Ke4 {[%clk 0:00:02]} 77. Bf5+ {[%clk 0:00:07]}  Kf4 {[%clk 0:00:03]} 78. Bg6 {[%clk 0:00:07]}  Ke3 {[%clk 0:00:01]} 79. Rf5 {[%clk 0:00:07]}  Kd4 {[%clk 0:00:01]} 80. Rf7 {[%clk 0:00:07]}  Ke5 {[%clk 0:00:01]} 81. Rg7 {[%clk 0:00:07]}  Ke6 {[%clk 0:00:00]} 82. Rg8 {[%clk 0:00:07]} 1-0


[Site "https://www.chess.com"]